Workbook

Sheet 2.03
A1: Mẫu biểu lập kế hoạch 2.03
A2: Đơn vị báo cáo: UBND tỉnh Vĩnh Long
A3: BÁO CÁO TÌNH HÌNH THỰC HIỆN RÚT VỐN VAY ODA VÀ ƯU ĐÃI NƯỚC NGOÀI NĂM HIỆN HÀNH, DỰ KIẾN NĂM KẾ HOẠCH VÀ 02 NĂM TIẾP THEO
A4: (Kèm theo công văn số 1540/STC-QLNS ngày 25/ 7 /2022 của Sở Tài chính)
V5: Đvt: triệu đồng
A6: STT | B6: Tên Dự án | C6: Nhà tài trợ | D6: Kế hoạch vốn được giao năm 2022 | H6: Ước thực hiện năm 2022 | L6: Nhu cầu rút vốn năm 2023 | P6: Nhu cầu rút vốn năm 2024 | T6: Nhu cầu rút vốn năm 2025
D7: Tổng | E7: Trong đó: | H7: Tổng | I7: Trong đó: | L7: Tổng | M7: Trong đó: | P7: Tổng | Q7: Trong đó: | T7: Tổng | U7: Trong đó:
E8: Cấp phát | G8: Vay lại | I8: Cấp phát | K8: Vay lại | M8: Cấp phát | O8: Vay lại | Q8: Cấp phát | S8: Vay lại | U8: Cấp phát | W8: Vay lại
E9: XDCB | F9: HCSN | I9: XDCB | J9: HCSN | M9: XDCB | N9: HCSN | Q9: XDCB | R9: HCSN | U9: XDCB | V9: HCSN
B10: Tổng số | D10: =SUM(D11) -> 476,271 | E10: =SUM(E11) -> 253,671 | F10: 0 | G10: 222,600 | H10: 284,655 | I10: 150,976 | J10: 0 | K10: 133,679 | L10: 872,820 | M10: 445,816 | N10: 0 | O10: 427,004 | P10: 1,400,000 | Q10: 700,000 | R10: 0 | S10: 700,000 | T10: 1,600,000 | U10: 800,000 | V10: 0 | W10: 800,000
A11: I | B11: Các dự án đã ký hiệp định đến 30/6/2022 đang giải ngân | D11: =SUM(D12:D15) -> 476,271 | E11: =SUM(E12:E15) -> 253,671 | F11: 0 | G11: 222,600 | H11: 284,655 | I11: 150,976 | J11: 0 | K11: 133,679 | L11: 872,820 | M11: 445,816 | N11: 0 | O11: 427,004 | P11: 1,400,000 | Q11: 700,000 | R11: 0 | S11: 700,000 | T11: 1,600,000 | U11: 800,000 | V11: 0 | W11: 800,000
A12: 1 | B12: Dự án Đầu tư trang thiết bị Bệnh viện đa khoa tỉnh Vĩnh Long | C12: Chính phủ Áo | D12: =SUM(E12:G12) -> 61,431 | E12: 43,000 | G12: 18,431 | H12: =SUM(I12:K12) -> 61,431 | I12: 43,000 | K12: 18,431
A13: 2 | B13: Dự án Tăng cường quản lý đất đai và cơ sở dữ liệu đất đai tỉnh Vĩnh Long | C13: WB | D13: =SUM(E13:G13) -> 7,467 | E13: 2,695 | G13: 4,772 | H13: =SUM(I13:K13) -> 2,426 | I13: 0 | K13: 2,426 | L13: =SUM(M13:O13) -> 7,666 | M13: 5,366 | O13: 2,300
A14: 3 | B14: Dự án Mở rộng nâng cấp đô thị Việt Nam - Tiểu dự án Thành phố Vĩnh Long, tỉnh Vĩnh Long | C14: WB | D14: =E14+G14 -> 320,798 | E14: 207,976 | G14: 112,822 | H14: =I14+K14 -> 220,798 | I14: 107,976 | K14: =G14 -> 112,822 | L14: =M14+O14 -> 448,264 | M14: 232,005 | O14: 216,259
A15: 4 | B15: Dự án Phát triển đô thị và tăng cường khả năng thích ứng biến đổi khí hậu thành phố Vĩnh Long, tỉnh Vĩnh Long | C15: WB và Chính phủ Hà Lan | D15: =E15+G15 -> 86,575 | G15: 86,575 | H15: =I15+K15 -> 0 | K15: 0 | L15: =M15+O15 -> 416,890 | M15: 208,445 | O15: 208,445 | P15: =Q15+S15 -> 1,400,000 | Q15: =S15 -> 700,000 | S15: 700,000 | T15: =U15+W15 -> 1,600,000 | U15: 800,000 | W15: 800,000
M17: =132005+100000 -> 232005 | O17: 216259
M21: 233,701 | O21: 103,792
